fUSD/lending_fUSD_20250222
["ID","MTS","AMOUNT","RATE_DAILY","PERIOD"]
[354023614,1740183071136,-500.0,0.00011941,2]
[354023615,1740183071146,-500.0,0.00011941,2]
[354023616,1740183071156,-228.2,0.00011941,2]
[354023617,1740183071167,-500.0,0.00011941,2]
[354023618,1740183071178,-500.0,0.00011941,2]
[354023619,1740183071187,-681.97,0.00011941,2]
[354023620,1740183071196,-500.0,0.00011941,2]
[354023621,1740183071206,-233.72,0.00011941,2]
[354023622,1740183071215,-500.0,0.00011941,2]
[354023623,1740183071224,-500.0,0.00011941,2]
[354023624,1740183071234,-500.0,0.00011941,2]
[354023625,1740183071243,-500.0,0.00011941,2]
[354023626,1740183071253,-500.0,0.00011941,2]
[354023627,1740183071263,-568.7,0.00011941,2]
[354023628,1740183071272,-500.0,0.00011941,2]
[354023629,1740183071282,-500.0,0.00011944,2]
[354023630,1740183071291,-500.0,0.00011944,2]
[354023631,1740183071300,-405.61,0.00011944,2]
[354023632,1740183071309,-500.0,0.00011944,2]
[354023633,1740183071319,-500.0,0.00011944,2]
[354023634,1740183071329,-210.24,0.00011944,2]
[354023635,1740183071338,-925.32,0.00011944,2]
[354023636,1740183071347,-497.29,0.00011944,2]
[354023637,1740183071357,-500.0,0.00011944,2]
[354023638,1740183071366,-981.73,0.00011944,2]
[354023639,1740183071375,-1225.91,0.00011944,2]
[354023640,1740183071385,-1000.0,0.00011944,2]
[354023641,1740183071394,-1219.38,0.00011944,2]
[354023642,1740183071404,-500.0,0.00011944,2]
[354023643,1740183071413,-1112.17,0.00011944,2]
[354023644,1740183071423,-1281.07,0.00011944,2]
[354023645,1740183071432,-500.0,0.00011944,2]
[354023646,1740183071441,-534.97,0.00011944,2]
[354023647,1740183071451,-1531.07,0.00011944,2]
[354023648,1740183071460,-1000.0,0.00011948,2]
[354023649,1740183071469,-500.0,0.00011948,2]
[354023650,1740183071479,-900.0,0.00011948,2]
[354023651,1740183071488,-600.0,0.00012,2]
[354023652,1740183071497,-500.0,0.00012021,2]
[354023653,1740183071507,-270.553652,0.00012021,2]
[354023654,1740183071516,-500.0,0.00012021,2]
[354023655,1740183071525,-1851.02,0.00012021,2]
[354023656,1740183071535,-500.0,0.00012021,2]
[354023657,1740183071544,-659.88,0.00012021,2]
[354023658,1740183071554,-500.0,0.00012021,2]
[354023659,1740183071563,-500.0,0.00012021,2]
[354023660,1740183071572,-319.961925,0.00012021,2]
[354023661,1740183071582,-500.0,0.00012021,2]
[354023662,1740183071591,-674.0,0.00012021,2]
[354023663,1740183071601,-704.65,0.00012021,2]
[354023664,1740183071610,-662.23,0.00012021,2]
[354023665,1740183071620,-847.59,0.00012021,2]
[354023666,1740183071629,-780.91,0.00012021,2]
[354023667,1740183071638,-1102.75,0.00012021,2]
[354023668,1740183071648,-500.0,0.00012021,2]
[354023669,1740183071657,-546.67,0.00012021,2]
[354023670,1740183071667,-804.86,0.00012021,2]
[354023671,1740183071677,-1329.87,0.00012021,2]
[354023672,1740183071686,-656.74,0.00012021,2]
[354023673,1740183071695,-500.0,0.00012021,2]
[354023674,1740183071705,-1147.29,0.00012021,2]
[354023675,1740183071714,-901.63,0.00012021,2]
[354023676,1740183071725,-872.87,0.00012021,2]
[354023677,1740183071734,-500.0,0.00012021,2]
[354023678,1740183071744,-1312.42,0.00012021,2]
[354023679,1740183071754,-2825.2,0.00012021,2]
[354023680,1740183071763,-793.93,0.00012021,2]
[354023681,1740183071772,-500.0,0.00012021,2]
[354023682,1740183071781,-500.0,0.00012021,2]
[354023683,1740183071790,-500.0,0.00012021,2]
[354023684,1740183071800,-500.0,0.00012021,2]
[354023685,1740183071810,-972.62,0.00012021,2]
[354023686,1740183071819,-500.0,0.00012021,2]
[354023687,1740183071829,-1570.12,0.00012021,2]
[354023688,1740183071838,-881.42,0.00012021,2]
[354023689,1740183071847,-1689.55,0.00012021,2]
[354023690,1740183071856,-1867.77,0.00012021,2]
[354023691,1740183071866,-918.01,0.00012021,2]
[354023692,1740183071875,-500.0,0.00012021,2]
[354023693,1740183071886,-1105.42,0.00012021,2]
[354023694,1740183071895,-904.45,0.00012021,2]
[354023695,1740183071905,-1060.54,0.00012021,2]
[354023696,1740183071913,-1773.75,0.00012021,2]
[354023697,1740183071922,-211.8,0.00012021,2]
[354023698,1740183071931,-500.0,0.00012021,2]
[354023699,1740183071940,-670.78,0.00012021,2]
[354023700,1740183071949,-1166.03,0.00012021,2]
[354023701,1740183071958,-697.16,0.00012021,2]
[354023702,1740183071968,-500.0,0.00012021,2]
[354023703,1740183071977,-607.72,0.00012021,2]
[354023704,1740183071987,-500.0,0.00012021,2]
[354023705,1740183071997,-618.06,0.00012021,2]
[354023706,1740183072007,-500.0,0.00012022,2]
[354023707,1740183072019,-500.0,0.00012022,2]
[354023708,1740183072028,-500.0,0.00012022,2]
[354023709,1740183072038,-500.0,0.00012022,2]
[354023710,1740183072047,-500.0,0.00012022,2]
[354023711,1740183072057,-500.0,0.00012022,2]
[354023712,1740183072066,-500.0,0.00012022,2]
[354023713,1740183072075,-500.0,0.00012022,2]
[354023714,1740183072085,-500.0,0.00012022,2]
[354023715,1740183072096,-500.0,0.00012022,2]
[354023716,1740183072105,-500.0,0.00012022,2]
[354023717,1740183072115,-500.0,0.00012022,2]
[354023718,1740183072124,-500.0,0.00012022,2]
[354023719,1740183072133,-500.0,0.00012022,2]
[354023720,1740183072143,-500.0,0.00012022,2]
[354023721,1740183072153,-500.0,0.00012022,2]
[354023722,1740183072162,-500.0,0.00012022,2]
[354023723,1740183072172,-500.0,0.00012022,2]
[354023724,1740183072181,-500.0,0.00012022,2]
[354023725,1740183072191,-500.0,0.00012022,2]
[354023726,1740183072200,-500.0,0.00012022,2]
[354023727,1740183072211,-500.0,0.00012022,2]
[354023728,1740183072220,-480.3,0.00012022,2]
[354023729,1740183072230,-500.0,0.00012022,2]
[354023730,1740183072240,-345.28,0.00012022,2]
[354023731,1740183072250,-500.0,0.00012022,2]
[354023732,1740183072261,-280.93,0.00012022,2]
[354023733,1740183072270,-428.53315788,0.00012022,2]
[354023734,1740183072280,-500.0,0.00012022,2]
[354023735,1740183072290,-619.96,0.00012022,2]
[354023736,1740183072299,-500.0,0.00012022,2]
[354023737,1740183072309,-500.0,0.00012022,2]
[354023738,1740183072318,-500.0,0.00012022,2]
[354023739,1740183072327,-500.0,0.00012022,2]
[354023740,1740183072337,-500.0,0.00012022,2]
[354023741,1740183072346,-500.0,0.00012022,2]
[354023742,1740183072356,-500.0,0.00012022,2]
[354023743,1740183072365,-500.0,0.00012022,2]
[354023744,1740183072375,-500.0,0.00012022,2]
[354023745,1740183072384,-500.0,0.00012022,2]
[354023746,1740183072393,-500.0,0.00012022,2]
[354023747,1740183072402,-500.0,0.00012022,2]
[354023748,1740183072412,-500.0,0.00012022,2]
[354023749,1740183072421,-500.0,0.00012022,2]
[354023750,1740183072430,-672.25,0.00012022,2]
[354023751,1740183072439,-500.0,0.00012022,2]
[354023752,1740183072448,-604.62,0.00012022,2]
[354023753,1740183072457,-914.39,0.00012022,2]
[354023754,1740183072467,-740.85,0.00012022,2]
[354023755,1740183072476,-746.87,0.00012022,2]
[354023756,1740183072485,-500.0,0.00012022,2]
[354023757,1740183072494,-500.0,0.00012022,2]
[354023758,1740183072503,-506.16,0.00012022,2]
[354023759,1740183072512,-695.9,0.00012022,2]
[354023760,1740183072521,-500.0,0.00012022,2]
[354023761,1740183072531,-500.0,0.00012022,2]
[354023762,1740183072541,-500.0,0.00012022,2]
[354023763,1740183072550,-1020.33,0.00012022,2]
[354023764,1740183072559,-500.0,0.00012022,2]
[354023765,1740183072570,-500.0,0.00012022,2]
[354023766,1740183072578,-507.16,0.00012022,2]
[354023767,1740183072588,-500.0,0.00012022,2]
[354023768,1740183072598,-795.59,0.00012022,2]
[354023769,1740183072609,-500.0,0.00012022,2]
[354023770,1740183072619,-669.24,0.00012022,2]
[354023771,1740183072629,-500.0,0.00012022,2]
[354023772,1740183072638,-500.0,0.00012022,2]
[354023773,1740183072647,-1119.15,0.00012022,2]
[354023774,1740183072656,-500.0,0.00012022,2]
[354023775,1740183072666,-543.65,0.00012022,2]
[354023776,1740183072675,-500.0,0.00012022,2]
[354023777,1740183072687,-500.0,0.00012022,2]
[354023778,1740183072696,-696.77,0.00012022,2]
[354023779,1740183072706,-515.61,0.00012022,2]
[354023780,1740183072716,-500.0,0.00012022,2]
[354023781,1740183072726,-680.03,0.00012022,2]
[354023782,1740183072735,-1539.36,0.00012022,2]
[354023783,1740183072745,-500.0,0.00012022,2]
[354023784,1740183072756,-500.0,0.00012022,2]
[354023785,1740183072766,-500.0,0.00012022,2]
[354023786,1740183072775,-1475.55,0.00012022,2]
[354023787,1740183072785,-500.0,0.00012022,2]
[354023788,1740183072794,-822.9,0.00012022,2]
[354023789,1740183072803,-500.0,0.00012022,2]
[354023790,1740183072814,-1076.85,0.00012022,2]
[354023791,1740183072824,-500.0,0.00012022,2]
[354023792,1740183072833,-500.0,0.00012022,2]
[354023793,1740183072843,-1766.78,0.00012022,2]
[354023794,1740183072852,-3156.85,0.00012022,2]
[354023795,1740183072862,-500.0,0.00012022,2]
[354023796,1740183072871,-732.58,0.00012022,2]
[354023797,1740183072881,-676.08,0.00012022,2]
[354023798,1740183072890,-641.94,0.00012024,2]
[354023799,1740183072899,-500.0,0.00012024,2]
[354023800,1740183072909,-500.0,0.00012024,2]
[354023801,1740183072918,-500.0,0.00012024,2]
[354023802,1740183072930,-500.0,0.00012024,2]
[354023803,1740183072939,-500.0,0.00012024,2]
[354023804,1740183072948,-500.0,0.00012024,2]
[354023805,1740183072957,-500.0,0.00012024,2]
[354023806,1740183072967,-500.0,0.00012024,2]
[354023807,1740183072977,-500.0,0.00012024,2]
[354023808,1740183072987,-681.97,0.00012024,2]
[354023809,1740183072996,-500.0,0.00012024,2]
[354023810,1740183073006,-178.48,0.00012024,2]
[354023811,1740183073019,-500.0,0.00012024,2]
[354023812,1740183073027,-500.0,0.00012024,2]
[354023813,1740183073036,-500.0,0.00012024,2]
[354023814,1740183073046,-500.0,0.00012024,2]
[354023815,1740183073056,-500.0,0.00012024,2]
[354023816,1740183073065,-500.0,0.00012026,2]
[354023817,1740183073074,-159.68,0.00012026,2]
[354023818,1740183073083,-500.0,0.00012026,2]
[354023819,1740183073093,-500.0,0.00012026,2]
[354023820,1740183073103,-925.32,0.00012026,2]
[354023821,1740183073112,-500.0,0.00012026,2]
[354023822,1740183073121,-981.73,0.00012026,2]
[354023823,1740183073131,-1225.91,0.00012026,2]
[354023824,1740183073141,-1000.0,0.00012026,2]
[354023825,1740183073150,-1219.38,0.00012026,2]
[354023826,1740183073159,-500.0,0.00012026,2]
[354023827,1740183073169,-1112.17,0.00012026,2]
[354023828,1740183073179,-1281.07,0.00012026,2]
[354023829,1740183073189,-517.44485171,0.00012026,2]
[354023830,1740183073256,-534.97,0.00012026,2]
[354023831,1740183073266,-1531.07,0.00012026,2]
[354023832,1740183073276,-2000.0,0.000121,2]
[354023833,1740183073286,-2007.177,0.000121,2]
[354023834,1740183073295,-500.0,0.00012103,2]
[354023835,1740183073304,-270.553652,0.00012103,2]
[354023836,1740183073314,-500.0,0.00012103,2]
[354023837,1740183073324,-1851.02,0.00012103,2]
[354023838,1740183073333,-500.0,0.00012103,2]
[354023839,1740183073343,-659.88,0.00012103,2]
[354023840,1740183073353,-500.0,0.00012103,2]
[354023841,1740183073363,-500.0,0.00012103,2]
[354023842,1740183073373,-319.961925,0.00012103,2]
[354023843,1740183073383,-500.0,0.00012103,2]
[354023844,1740183073392,-674.0,0.00012103,2]
[354023845,1740183073402,-704.65,0.00012103,2]
[354023846,1740183073412,-662.23,0.00012103,2]
[354023847,1740183073421,-847.59,0.00012103,2]
[354023848,1740183073430,-780.91,0.00012103,2]
[354023849,1740183073439,-1102.75,0.00012103,2]
[354023850,1740183073449,-500.0,0.00012103,2]
[354023851,1740183073459,-546.67,0.00012103,2]
[354023852,1740183073468,-804.86,0.00012103,2]
[354023853,1740183073478,-1329.87,0.00012103,2]
[354023854,1740183073487,-656.74,0.00012103,2]
[354023855,1740183073496,-500.0,0.00012103,2]
[354023856,1740183073506,-1147.29,0.00012103,2]
[354023857,1740183073515,-901.63,0.00012103,2]
[354023858,1740183073523,-872.87,0.00012103,2]
[354023859,1740183073533,-500.0,0.00012103,2]
[354023860,1740183073542,-1312.42,0.00012103,2]
[354023861,1740183073551,-2825.2,0.00012103,2]
[354023862,1740183073563,-793.93,0.00012103,2]
[354023863,1740183073573,-500.0,0.00012103,2]
[354023864,1740183073583,-500.0,0.00012103,2]
[354023865,1740183073593,-500.0,0.00012103,2]
[354023866,1740183073602,-500.0,0.00012103,2]
[354023867,1740183073612,-972.62,0.00012103,2]
[354023868,1740183073620,-500.0,0.00012103,2]
[354023869,1740183073630,-1570.12,0.00012103,2]
[354023870,1740183073640,-881.42,0.00012103,2]
[354023871,1740183073650,-1689.55,0.00012103,2]
[354023872,1740183073660,-1867.77,0.00012103,2]
[354023873,1740183073671,-918.01,0.00012103,2]
[354023874,1740183073680,-500.0,0.00012103,2]
[354023875,1740183073690,-1105.42,0.00012103,2]
[354023876,1740183073700,-904.45,0.00012103,2]
[354023877,1740183073709,-1060.54,0.00012103,2]
[354023878,1740183073719,-1773.75,0.00012103,2]
[354023879,1740183073730,-500.0,0.00012103,2]
[354023880,1740183073740,-670.78,0.00012103,2]
[354023881,1740183073750,-1166.03,0.00012103,2]
[354023882,1740183073760,-697.16,0.00012103,2]
[354023883,1740183073770,-500.0,0.00012103,2]
[354023884,1740183073779,-607.72,0.00012103,2]
[354023885,1740183073789,-500.0,0.00012103,2]
[354023886,1740183073799,-618.06,0.00012103,2]
[354023887,1740183073809,-500.0,0.00012104,2]
[354023888,1740183073819,-500.0,0.00012104,2]
[354023889,1740183073829,-183.1728952,0.00012104,2]
[354023890,1740183073839,-500.0,0.00012104,2]
[354023891,1740183073848,-628.41627075,0.00012104,2]
[354023892,1740183073857,-500.0,0.00012104,2]
[354023893,1740183073867,-535.77,0.00012104,2]
[354023894,1740183073876,-500.0,0.00012104,2]
[354023895,1740183073885,-283.8,0.00012104,2]
[354023896,1740183073894,-500.0,0.00012104,2]
[354023897,1740183073904,-500.0,0.00012104,2]
[354023898,1740183073913,-500.0,0.00012104,2]
[354023899,1740183073922,-500.0,0.00012104,2]
[354023900,1740183073932,-500.0,0.00012104,2]
[354023901,1740183073942,-500.0,0.00012104,2]
[354023902,1740183073951,-500.0,0.00012104,2]
[354023903,1740183073961,-500.0,0.00012104,2]
[354023904,1740183073970,-500.0,0.00012104,2]
[354023905,1740183073979,-500.0,0.00012104,2]
[354023906,1740183073988,-500.0,0.00012104,2]
[354023907,1740183073999,-500.0,0.00012104,2]
[354023908,1740183074010,-500.0,0.00012104,2]
[354023909,1740183074023,-500.0,0.00012104,2]
[354023910,1740183074032,-500.0,0.00012104,2]
[354023911,1740183074042,-500.0,0.00012104,2]
[354023912,1740183074051,-500.0,0.00012104,2]
[354023913,1740183074062,-500.0,0.00012104,2]
[354023914,1740183074072,-500.0,0.00012104,2]
[354023915,1740183074081,-500.0,0.00012104,2]
[354023916,1740183074092,-225.85,0.00012104,2]
[354023917,1740183074101,-500.0,0.00012104,2]
[354023918,1740183074111,-500.0,0.00012104,2]
[354023919,1740183074120,-500.0,0.00012104,2]
[354023920,1740183074129,-426.56,0.00012104,2]
[354023921,1740183074139,-500.0,0.00012104,2]
[354023922,1740183074148,-500.0,0.00012104,2]
[354023923,1740183074158,-672.25,0.00012104,2]
[354023924,1740183074168,-500.0,0.00012104,2]
[354023925,1740183074178,-604.62,0.00012104,2]
[354023926,1740183074189,-914.39,0.00012104,2]
[354023927,1740183074198,-740.85,0.00012104,2]
[354023928,1740183074208,-746.87,0.00012104,2]
[354023929,1740183074218,-500.0,0.00012104,2]
[354023930,1740183074228,-500.0,0.00012104,2]
[354023931,1740183074238,-695.9,0.00012104,2]
[354023932,1740183074247,-500.0,0.00012104,2]
[354023933,1740183074257,-500.0,0.00012104,2]
[354023934,1740183074267,-392.32,0.00012104,2]
[354023935,1740183074277,-1020.33,0.00012104,2]
[354023936,1740183074287,-500.0,0.00012104,2]
[354023937,1740183074297,-500.0,0.00012104,2]
[354023938,1740183074307,-507.16,0.00012104,2]
[354023939,1740183074316,-358.48,0.00012104,2]
[354023940,1740183074326,-795.59,0.00012104,2]
[354023941,1740183074335,-500.0,0.00012104,2]
[354023942,1740183074346,-669.24,0.00012104,2]
[354023943,1740183074356,-500.0,0.00012104,2]
[354023944,1740183074366,-500.0,0.00012104,2]
[354023945,1740183074376,-1119.15,0.00012104,2]
[354023946,1740183074386,-497.0,0.00012104,2]
[354023947,1740183074397,-543.65,0.00012104,2]
[354023948,1740183074406,-500.0,0.00012104,2]
[354023949,1740183074416,-422.03429831,0.00012104,2]
[354023950,1740183074426,-696.77,0.00012104,2]
[354023951,1740183074436,-515.61,0.00012104,2]
[354023952,1740183074446,-500.0,0.00012104,2]
[354023953,1740183074456,-680.03,0.00012104,2]
[354023954,1740183074466,-1539.36,0.00012104,2]
[354023955,1740183074476,-500.0,0.00012104,2]
[354023956,1740183074486,-500.0,0.00012104,2]
[354023957,1740183074495,-1475.55,0.00012104,2]
[354023958,1740183074506,-500.0,0.00012104,2]
[354023959,1740183074516,-822.9,0.00012104,2]
[354023960,1740183074525,-500.0,0.00012104,2]
[354023961,1740183074536,-1076.85,0.00012104,2]
[354023962,1740183074546,-563.2,0.00012104,2]
[354023963,1740183074556,-500.0,0.00012104,2]
[354023964,1740183074566,-1766.78,0.00012104,2]
[354023965,1740183074575,-3156.85,0.00012104,2]
[354023966,1740183074585,-732.58,0.00012104,2]
[354023967,1740183074595,-676.08,0.00012104,2]
[354023968,1740183074604,-500.0,0.00012106,2]
[354023969,1740183074614,-500.0,0.00012106,2]
[354023970,1740183074624,-500.0,0.00012106,2]
[354023971,1740183074633,-500.0,0.00012106,2]
[354023972,1740183074643,-500.0,0.00012106,2]
[354023973,1740183074652,-223.2,0.00012106,2]
[354023974,1740183074662,-500.0,0.00012106,2]
[354023975,1740183074671,-500.0,0.00012106,2]
[354023976,1740183074681,-500.0,0.00012106,2]
[354023977,1740183074690,-681.97,0.00012106,2]
[354023978,1740183074699,-500.0,0.00012106,2]
[354023979,1740183074709,-500.0,0.00012106,2]
[354023980,1740183074719,-500.0,0.00012106,2]
[354023981,1740183074729,-500.0,0.00012106,2]
[354023982,1740183074740,-500.0,0.00012106,2]
[354023983,1740183074750,-500.0,0.00012106,2]
[354023984,1740183074759,-925.32,0.00012108,2]
[354023985,1740183074769,-500.0,0.00012108,2]
[354023986,1740183074778,-981.73,0.00012108,2]
[354023987,1740183074787,-1225.91,0.00012108,2]
[354023988,1740183074797,-1000.0,0.00012108,2]
[354023989,1740183074807,-1219.38,0.00012108,2]
[354023990,1740183074816,-1112.17,0.00012108,2]
[354023991,1740183074826,-1281.07,0.00012108,2]
[354023992,1740183074835,-534.97,0.00012108,2]
[354023993,1740183074846,-1531.07,0.00012108,2]
[354023994,1740183074856,-507.84,0.00012109,2]
[354023995,1740183074866,-546.54,0.00012109,2]
[354023996,1740183074878,-500.0,0.00012109,2]
[354023997,1740183074888,-165.40619791,0.00012164,2]
[354023998,1740183074898,-1000.0,0.00012172,2]
[354023999,1740183074908,-500.0,0.00012186,2]
[354024000,1740183074918,-270.553652,0.00012186,2]
[354024001,1740183074927,-500.0,0.00012186,2]
[354024002,1740183074938,-159.544922,0.00012186,2]
[354024003,1740183074948,-1851.02,0.00012186,2]
[354024004,1740183074957,-500.0,0.00012186,2]
[354024005,1740183074967,-659.88,0.00012186,2]
[354024006,1740183074976,-500.0,0.00012186,2]
[354024007,1740183074986,-500.0,0.00012186,2]
[354024008,1740183074996,-319.961925,0.00012186,2]
[354024009,1740183075006,-500.0,0.00012186,2]
[354024010,1740183075020,-674.0,0.00012186,2]
[354024011,1740183075030,-704.65,0.00012186,2]
[354024012,1740183075039,-662.23,0.00012186,2]
[354024013,1740183075049,-847.59,0.00012186,2]
[354024014,1740183075059,-780.91,0.00012186,2]
[354024015,1740183075068,-1102.75,0.00012186,2]
[354024016,1740183075078,-500.0,0.00012186,2]
[354024017,1740183075090,-546.67,0.00012186,2]
[354024018,1740183075100,-804.86,0.00012186,2]
[354024019,1740183075110,-1329.87,0.00012186,2]
[354024020,1740183075119,-656.74,0.00012186,2]
[354024021,1740183075129,-611.02,0.00012186,2]
[354024022,1740183075139,-1147.29,0.00012186,2]
[354024023,1740183075149,-901.63,0.00012186,2]
[354024024,1740183075159,-872.87,0.00012186,2]
[354024025,1740183075168,-500.0,0.00012186,2]
[354024026,1740183075179,-1312.42,0.00012186,2]
[354024027,1740183075188,-2825.2,0.00012186,2]
[354024028,1740183075199,-793.93,0.00012186,2]
[354024029,1740183075208,-500.0,0.00012186,2]
[354024030,1740183075218,-500.0,0.00012186,2]
[354024031,1740183075228,-500.0,0.00012186,2]
[354024032,1740183075238,-500.0,0.00012186,2]
[354024033,1740183075249,-972.62,0.00012186,2]
[354024034,1740183075259,-500.0,0.00012186,2]
[354024035,1740183075269,-1570.12,0.00012186,2]
[354024036,1740183075279,-881.42,0.00012186,2]
[354024037,1740183075289,-1689.55,0.00012186,2]
[354024038,1740183075299,-1867.77,0.00012186,2]
[354024039,1740183075309,-918.01,0.00012186,2]
[354024040,1740183075319,-500.0,0.00012186,2]
[354024041,1740183075329,-1105.42,0.00012186,2]
[354024042,1740183075339,-904.45,0.00012186,2]
[354024043,1740183075349,-1060.54,0.00012186,2]
[354024044,1740183075358,-1773.75,0.00012186,2]
[354024045,1740183075368,-500.0,0.00012186,2]
[354024046,1740183075378,-670.78,0.00012186,2]
[354024047,1740183075388,-1166.03,0.00012186,2]
[354024048,1740183075398,-697.16,0.00012186,2]
[354024049,1740183075408,-500.0,0.00012186,2]
[354024050,1740183075418,-607.72,0.00012186,2]
[354024051,1740183075427,-500.0,0.00012186,2]
[354024052,1740183075437,-618.06,0.00012186,2]
[354024053,1740183075447,-500.0,0.00012187,2]
[354024054,1740183075457,-500.0,0.00012187,2]
[354024055,1740183075467,-500.0,0.00012187,2]
[354024056,1740183075477,-500.0,0.00012187,2]
[354024057,1740183075487,-500.0,0.00012187,2]
[354024058,1740183075496,-500.0,0.00012187,2]
[354024059,1740183075507,-500.0,0.00012187,2]
[354024060,1740183075517,-500.0,0.00012187,2]
[354024061,1740183075527,-500.0,0.00012187,2]
[354024062,1740183075536,-500.0,0.00012187,2]
[354024063,1740183075546,-500.0,0.00012187,2]
[354024064,1740183075555,-500.0,0.00012187,2]
[354024065,1740183075565,-298.6,0.00012187,2]
[354024066,1740183075575,-500.0,0.00012187,2]
[354024067,1740183075584,-500.0,0.00012187,2]
[354024068,1740183075594,-500.0,0.00012187,2]
[354024069,1740183075604,-500.0,0.00012187,2]
[354024070,1740183075613,-500.0,0.00012187,2]
[354024071,1740183075623,-428.34,0.00012187,2]
[354024072,1740183075632,-500.0,0.00012187,2]
[354024073,1740183075642,-500.0,0.00012187,2]
[354024074,1740183075652,-500.0,0.00012187,2]
[354024075,1740183075662,-500.0,0.00012187,2]
[354024076,1740183075671,-500.0,0.00012187,2]
[354024077,1740183075681,-500.0,0.00012187,2]
[354024078,1740183075691,-500.0,0.00012187,2]
[354024079,1740183075700,-500.0,0.00012187,2]
[354024080,1740183075710,-500.0,0.00012187,2]
[354024081,1740183075720,-443.91,0.00012187,2]
[354024082,1740183075730,-672.25,0.00012187,2]
[354024083,1740183075740,-500.0,0.00012187,2]
[354024084,1740183075750,-604.62,0.00012187,2]
[354024085,1740183075760,-914.39,0.00012187,2]
[354024086,1740183075770,-740.85,0.00012187,2]
[354024087,1740183075780,-746.87,0.00012187,2]
[354024088,1740183075790,-500.0,0.00012187,2]
[354024089,1740183075800,-500.0,0.00012187,2]
[354024090,1740183075810,-695.9,0.00012187,2]
[354024091,1740183075819,-500.0,0.00012187,2]
[354024092,1740183075829,-500.0,0.00012187,2]
[354024093,1740183075840,-1020.33,0.00012187,2]
[354024094,1740183075850,-500.0,0.00012187,2]
[354024095,1740183075859,-500.0,0.00012187,2]
[354024096,1740183075869,-507.16,0.00012187,2]
[354024097,1740183075879,-795.59,0.00012187,2]
[354024098,1740183075889,-500.0,0.00012187,2]
[354024099,1740183075899,-669.24,0.00012187,2]
[354024100,1740183075908,-562.96,0.00012187,2]
[354024101,1740183075918,-500.0,0.00012187,2]
[354024102,1740183075928,-1119.15,0.00012187,2]
[354024103,1740183075938,-543.65,0.00012187,2]
[354024104,1740183075947,-256.17479257,0.00012187,2]
[354024105,1740183075958,-696.77,0.00012187,2]
[354024106,1740183075968,-515.61,0.00012187,2]
[354024107,1740183075978,-500.0,0.00012187,2]
[354024108,1740183075988,-680.03,0.00012187,2]
[354024109,1740183075999,-1539.36,0.00012187,2]
[354024110,1740183076011,-500.0,0.00012187,2]
[354024111,1740183076023,-500.0,0.00012187,2]
[354024112,1740183076033,-1475.55,0.00012187,2]
[354024113,1740183076044,-500.0,0.00012187,2]